Cogmind - Beta 11.1 @@@ ROGUE MODE // 2022.07.03 @ 18:13:31 Player: Rilt Result: Destroyed by Y-45 Defender with Heavy Assault Rifle Performance ------------- Evolutions (0) 0 Regions Visited (2) 400 Robots Destroyed (4) 20 Value Destroyed (77) 77 Prototype IDs (1) 20 Alien Tech Used (0) 0 Bonus (0) 0 TOTAL SCORE: 517 Bonus ------- None Cogmind --------- Core Integrity 0/250 Matter 278/300 Energy 14/100 System Corruption 0% Temperature Warm (138) Movement Core (250) Ox4 Location -10/Mines Parts ------- > --- POWER (1) -------- (None) > --- PROPULSION (2) --- (None) > --- UTILITY (2) ------ Medium Storage Unit Experimental Sensor Array > --- WEAPON (2) ------- Beam Cannon Light Assault Rifle > --- INVENTORY (10) --- Light Ion Engine Aluminum Leg Aluminum Leg Improved Heat Sink Signal Interpreter Propulsion Shielding Peak State ------------ > --- POWER ------------ Ion Engine > --- PROPULSION ------- Aluminum Leg Aluminum Leg > --- UTILITY ---------- Medium Storage Unit Experimental Sensor Array > --- WEAPON ----------- Beam Cannon Light Assault Rifle > --- INVENTORY -------- Light Ion Engine Aluminum Leg Aluminum Leg Wheel Compact Wheel Improved Heat Sink Propulsion Shielding Beam Cannon Light Assault Rifle Mining Laser [Rating: 16] Favorites ----------- Power Ion Engine Engine Ion Engine Propulsion Aluminum Leg Leg Aluminum Leg Utility Medium Storage Unit Device Experimental Sensor Array Storage Medium Storage Unit Protection Propulsion Shielding Weapon Light Assault Rifle Energy Cannon Beam Cannon Ballistic Gun Light Assault Rifle Special Weapon Mining Laser Build | -11 -10 -10 ------- Run | Scr Mat Min Slots Evolved . | . . . Power . | . . . Propulsion . | . . . Utility . | . . . Weapon . | . . . Parts Attached 15 | 7 3 5 Power 2 | 2 . . Engine 2 | 2 . . Core . | . . . Reactor . | . . . Propulsion 2 | 2 . . Treads . | . . . Leg 2 | 2 . . Wheel . | . . . Hover . | . . . Flight . | . . . Utility 4 | 1 2 1 Device 1 | . . 1 Storage 2 | 1 1 . Processor . | . . . Hackware . | . . . Protection 1 | . 1 . Artifact . | . . . Weapon 7 | 2 1 4 Energy Gun . | . . . Energy Cannon 2 | . 1 1 Ballistic Gun 4 | 2 . 2 Ballistic Cannon . | . . . Launcher . | . . . Special Weapon 1 | . . 1 Impact Weapon . | . . . Slashing Weapon . | . . . Piercing Weapon . | . . . Special Melee Weapon . | . . . Unidentified Prototypes 1 | . . 1 Parts Lost 6 | . . 6 Power 1 | . . 1 Propulsion 2 | . . 2 Utility . | . . . Weapon 3 | . . 3 Highest Loss Streak 6 | . . 6 To Critical Strikes . | . . . Average Slot Usage (%) 98 | . 97 98 Engine 13 | . 14 13 Leg 27 | . 28 27 Device 1 | . . 2 Storage 14 | . 14 14 Protection 11 | . 11 11 Energy Cannon 13 | . 6 14 Ballistic Gun 14 | . 21 13 Naked Turns . | . . . Heaviest Build 20 | 12 20 20 Greatest Support 20 | 20 20 20 Greatest Overweight (x) 1 | . . 1 Average Overweight (x) . | . . . Largest Inventory Capacity 10 | 8 10 10 Average Capacity 9 | 6 8 10 Most Carried 10 | 4 5 10 Average Carried 7 | 2 3 8 Final Capacity 10 | 8 10 10 Final Carried 6 | 3 5 6 Class Distribution -------------------- 100% | Mutant Dominant Class ---------------- Mutant | -10/Materials Mutant | -10/Mines Resources | -11 -10 -10 ----------- Run | Scr Mat Min Matter Collected 337 | 226 . 111 Remotely . | . . . Salvage Created 85 | . . 85 Parts 6 | . . 6 Haulers Intercepted . | . . . Recyclers Shooed 1 | . . 1 Parts Field Recycled . | . . . Retrieved Matter . | . . . Parts Self-Destructed . | . . . Prevented . | . . . Kills | -11 -10 -10 ------- Run | Scr Mat Min Combat Hostiles Destroyed 4 | . . 4 Guns 1 | . . 1 Cannons 2 | . . 2 Classes Destroyed 2 | . . 2 Swarmer 3 | . . 3 Grunt 1 | . . 1 Best Kill Streak 2 | . . 2 Combat Bots Only 2 | . . 2 Max Kills in Single Turn 1 | . . 1 Gunslinging . | . . . Exploded . | . . . Melee . | . . . Uniques/NPCs Destroyed . | . . . Combat | -11 -10 -10 -------- Run | Scr Mat Min Damage Taken 839 | . . 839 Core 259 | . . 259 Absorbed by Shields . | . . . Redirected to Shielding 30 | . . 30 Core Remaining (%) 100 | 100 . . Volleys Fired 28 | . . 28 Largest 2 | . . 2 Hottest 80 | . . 80 Shots Fired 52 | . . 52 Gun 25 | . . 25 Cannon 27 | . . 27 Launcher . | . . . Special . | . . . Kinetic 25 | . . 25 Thermal 27 | . . 27 Explosive . | . . . Electromagnetic . | . . . Robot Hit Streak 4 | . . 4 Robot Miss Streak 3 | . . 3 Penetration Max . | . . . Secondary Targets . | . . . Shots Hit Robots 26 | . . 26 Core Hits 9 | . . 9 Critical Kills 1 | . . 1 Critical Parts Destroyed . | . . . Critical Strikes 1 | . . 1 Meltdown 1 | . . 1 Melee Attacks . | . . . Impact . | . . . Slashing . | . . . Piercing . | . . . Sneak Attacks . | . . . Combat Hostiles . | . . . Follow-up Attacks . | . . . Damage Inflicted 367 | . . 367 Guns 122 | . . 122 Cannons 245 | . . 245 Explosions . | . . . Melee . | . . . Ramming . | . . . Kinetic 122 | . . 122 Thermal 245 | . . 245 Explosive . | . . . Electromagnetic . | . . . Impact . | . . . Slashing . | . . . Piercing . | . . . Highest Corruption . | . . . Average Corruption . | . . . Corruption Purged . | . . . Corruption Blocked . | . . . Overload Shots . | . . . Overflow Damage . | . . . Projectiles . | . . . Explosions . | . . . Melee . | . . . Knockbacks . | . . . Impact . | . . . Kinetic . | . . . Secondary . | . . . Self-Inflicted Damage . | . . . Shots . | . . . Rammed . | . . . Targets Rammed . | . . . Kicked . | . . . Crushed . | . . . Highest Temperature 356 | . . 356 Average Temperature 133 | . . 133 Received Heat Transfer 303 | . . 303 Effects 3 | . . 3 Shutdowns 1 | . . 1 Interference 2 | . . 2 Siege Activations . | . . . Robots Corrupted . | . . . Combat Hostiles . | . . . Parts Fried . | . . . Impact Corruptions . | . . . Robots Melted 1 | . . 1 Combat Hostiles 1 | . . 1 Parts Melted 2 | . . 2 Heat Transferred 518 | . . 518 Parts Sabotaged . | . . . Parts Stolen . | . . . Parts Stripped . | . . . Power Chain Reactions . | . . . Missiles Intercepted . | . . . Alert | -11 -10 -10 ------- Run | Scr Mat Min Peak Influence 130 | . 2 130 Initial . | . . . Average 40 | . . 48 Maximum Alert Level . | . . . Low Security (%) 100 | 100 100 100 Level 1 . | . . . Level 2 . | . . . Level 3 . | . . . Level 4 . | . . . Level 5 . | . . . High Security . | . . . Max Security . | . . . Squads Dispatched . | . . . Investigation . | . . . Extermination . | . . . Reinforcement . | . . . Assault . | . . . Garrison . | . . . Intercept . | . . . Searches Triggered . | . . . Construction Impeded . | . . . Haulers Reinforced . | . . . Active Scanning Responses . | . . . Cargo Convoy Interrupts . | . . . Stealth | -11 -10 -10 --------- Run | Scr Mat Min Distress Signals . | . . . Communications Jammed . | . . . Distress Signals . | . . . Times Spotted 9 | . . 9 Peak Tracking Total 3 | . . 3 Tactical Retreats 1 | . . 1 Traps | -11 -10 -10 ------- Run | Scr Mat Min Traps Triggered . | . . . Indirectly . | . . . Trap Hack Attempts . | . . . Triggered . | . . . Disarmed . | . . . Reprogrammed . | . . . Reused . | . . . Traps Extracted . | . . . Installed . | . . . Triggered . | . . . Machines | -11 -10 -10 ---------- Run | Scr Mat Min Machines Disabled . | . . . Max in Single Turn . | . . . Machines Sabotaged . | . . . Garrisons Compromised . | . . . Overloaded Fab Kills . | . . . Hacking | -11 -10 -10 --------- Run | Scr Mat Min Machines Accessed 1 | . 1 . Terminals 1 | . 1 . Fabricators . | . . . Repair Stations . | . . . Recycling Units . | . . . Scanalyzers . | . . . Garrison Access . | . . . Total Hacks 1 | . 1 . Successful 1 | . 1 . Failed . | . . . Catastrophic . | . . . Database Lockouts . | . . . Manual . | . . . Terminals 1 | . 1 . Fabricators . | . . . Repair Stations . | . . . Recycling Units . | . . . Scanalyzers . | . . . Garrison Access . | . . . Terminal Hacks 1 | . 1 . Record 1 | . 1 . Fabricator Hacks . | . . . Repair Station Hacks . | . . . Recycling Unit Hacks . | . . . Scanalyzer . | . . . Garrison Access Hacks . | . . . Unauthorized Hacks . | . . . Terminals . | . . . Fabricators . | . . . Repair Stations . | . . . Recycling Units . | . . . Scanalyzers . | . . . Garrison Access . | . . . Data Cores Recovered . | . . . Used . | . . . Hacking Detections . | . . . Full Trace Events . | . . . Feedback Events . | . . . Feedback Blocked . | . . . Robot Schematics Acquired . | . . . Robots Built . | . . . Authchips . | . . . Time . | . . . Total Robot Build Rating . | . . . Part Schematics Acquired . | . . . Parts Built . | . . . Authchips . | . . . Time . | . . . Total Part Build Rating . | . . . Parts Repaired . | . . . Time . | . . . Parts Recycled . | . . . Recycled Matter . | . . . Retrieved Matter . | . . . Retrieved Components . | . . . Parts Scanalyzed . | . . . Part Schematics Acquired . | . . . Parts Damaged . | . . . Bothacking | -11 -10 -10 ------------ Run | Scr Mat Min Used RIF Installer . | . . . Robots Hacked . | . . . Non-combat . | . . . Combat . | . . . Robot Hacks Applied . | . . . Relay Couplers Released . | . . . Fabnet Peak Effective % . | . . . Robots Rewired . | . . . Allies Hacked . | . . . Hacks Repelled . | . . . Allies | -11 -10 -10 -------- Run | Scr Mat Min Total Allies . | . . . Largest Group . | . . . Highest-Rated Group . | . . . Highest-Rated Ally . | . . . Total Orders . | . . . Ally Attacks . | . . . Total Damage . | . . . Kills . | . . . Allies Corrupted . | . . . Allies Melted . | . . . Intel | -11 -10 -10 ------- Run | Scr Mat Min Robot Analysis Total . | . . . Derelict Logs Recovered 3 | . . 3 Drone Launches . | . . . Drone Recoveries . | . . . Exploration | -11 -10 -10 ------------- Run | Scr Mat Min Turns Passed 904 | 55 112 737 Spaces Moved 670 | 43 87 540 Core 18 | 18 . . Treads . | . . . Legs 652 | 25 87 540 Wheels . | . . . Hover . | . . . Flight . | . . . Fastest Speed 50 | 50 120 120 Average Speed 118 | 90 120 120 Slowest Speed 190 | 120 120 190 Overloaded Moves . | . . . Propulsion Burnouts . | . . . Robots Hopped . | . . . Cave-ins Triggered . | . . . Exploration Rate (%) 37 | 4 20 88 Regions Visited 2 Branch Regions 1 Pre-discovered Areas 2 | . . 2 Known Exits Taken . | . . . Unknown Exits Taken 2 | 1 1 . Scrap Searched 3 | . . 3 Spaces Dug . | . . . Terrain Destroyed . | . . . Melee . | . . . Projectile . | . . . AOE . | . . . Terrain Rammed . | . . . Walls Destroyed . | . . . Machines Disabled . | . . . Actions | -11 -10 -10 --------- Run | Scr Mat Min Total 735 | 58 95 582 Wait . | . . . Move 668 | 42 86 540 Hop . | . . . Pick Up 19 | 9 4 6 Fast Attach . | . . . Attach 11 | 6 2 3 Detach 1 | . 1 . Swap 4 | 1 1 2 Drop 4 | . 1 3 Fire 28 | . . 28 Melee . | . . . Ram . | . . . Kick . | . . . Crush . | . . . Escape Stasis . | . . . Rewire . | . . . Trap . | . . . Miscellaneous . | . . . Route ------- -11/Scrapyard -10/Materials -10/Mines (discovered 1 exit: *Mat) History --------- Turn | Location | Event 2 | -11/Scrapyard | Met Revision 17 14 | -11/Scrapyard | Discovered new exit (range 14) 56 | -11/Scrapyard | Entered Materials 128 | -10/Materials | Discovered new exit (range 16) 168 | -10/Materials | Entered Mines 172 | -10/Mines | Met a Derelict bent on vengeance 305 | -10/Mines | Build established: Mutant 422 | -10/Mines | Identified exit to Materials 793 | -10/Mines | Found a damaged Exp. Sensor Array with a note attached 796 | -10/Mines | Found Prototype Device 797 | -10/Mines | Identified Exp. Sensor Array 863 | -10/Mines | Learned location of Zion (-6) 877 | -10/Mines | Core integrity fell below 50% 897 | -10/Mines | Core integrity fell below 20% 905 | -10/Mines | Destroyed by Y-45 Defender with Heavy Assault Rifle Last Messages --------------- 00796_ Acquired Prototype Device. 00797_ Identified Exp. Sensor Array. 00838_ Searching scrap... 00838_ Found Sensor Array. 00838_ Found Signal Interpreter. 00838_ Found ECM Suite. 00838_ Found Hcp. Storage Unit. 00838_ Found 37 Matter. 00839_ Acquired 11 matter. 00841_ Dropped Wheel. 00842_ Dropped Com. Wheel. 00846_ Acquired Signal Interpreter. 00863_ Acquired derelict log, extracted data. World map updated: -6/Zion. 00876_ Aluminum Leg destroyed. 00876_ Ion Engine destroyed. 00890_ Lgt. Assault Rifle destroyed. 00896_ Beam Cannon destroyed. 00899_ Mining Laser destroyed. 00899_ Aluminum Leg destroyed. Map ----- +----------------------------------------------------+ | ??####???????????# #?# #??## ##???# # | | ????????????????## #?# #### #????# # | | ???????????????## #?# #????# # | | ???????????????# #?## #### #????# | | ???????????????# #??# #??####????# | | ???????????????# ##?# ############ | | ???????????????## ### %!%! | | ??????????####### ########### ##### | | ?????????# ## [#???????# ##### | | ?????????# ###### ### #??????# | | ????????????????# #?## #????# ##### | | ????????????????# #??#### #???# ##### | | ????????????????# #??????####???# | | ????????????????# #?????????????####### | | ????????????????# #???????????????????? | | ????????????????# #???????????????????? | | ????????????????# #???????????????????? | | ????????????????# #???????????????????? | | ????????????????# ########????????????? | | ??????????####### #????????????? | | ?????????##" "##########?#?###????????? | | ?????????#!/ |[#???????# ## #????????? | | ?????????#]] ![#?????### #????????? | | ????????### #?????## ##????? ?? | | ??????### ##++###????# ## #?? | | ??????# Y@###### #???? | | ??????# Y # %!= ##???? | | ??????## #### !!= ###????? | | ???????## ## ### ####??????? | | ????????## ##?# ##?????????? | | ?????????# ##??# ##??????????? | | ?????????# ##??? ##???????????? | | ?????????# < #???? ##????????????? | | ?????????## #???# #?????????????? | | ??????????## ##???## ##?????????????? | | ???????????#####?????####??????????????? | | ???????????????????????????????????????? | | ???????????????????????????????????????? | | ???????????????????????????????????????? | | ???????????????????????????????????????? | | | | | | | | | | | | | | | | | | | | | +----------------------------------------------------+ Best States ------------- Heat Dissipation 25 Energy Generation 10 Energy Capacity 250 Matter Stores 300 Matter Capacity 300 Sight Range 16 Robot Scan Range 20 Terrain Scan Density 10 Propulsion Shielding 33 Evasion (%) 55 Item Schematics ----------------- None Robot Schematics ------------------ None Fabricated ------------ Nothing Alien Tech Used ----------------- None Achievements -------------- None Challenges ------------ None Game ------ Seed HeavyRocketImmobilizer Manual? 0 Play Time 00:16:07 Cumulative 14.9 hours Start 2022.07.03 @ 17:58:50 End 2022.07.03 @ 18:13:31 Sessions 1 Manual Loads 0 Difficulty Rogue Special Mode None Game No. 27 Rogue 27 Adventurer 0 Explorer 0 Win Type - Total 0 Types 0/0/0/0/0/0/0/0/0 Lore% 19 Gallery% 23 Achievement% 19 Wizard Run 0 Options --------- ASCII 0 Keyboard 0 Movement Mouse Keybinds 0 Fullscreen 1 Font 24/Smallcaps Map View 113x50 Tactical HUD 1 Map Filters NONE Filters NONE Steam 1 RUN: a5d439fe-83aa-41f2-abea-dd758c9fb28f